bitfinex-derivatives/quotes_SOLF0:USTF0_20260310
["timestamp","ask_amount","ask_price","bid_price","bid_amount"]
[1773114942347,4.08396093,85.636,85.588,3.9104038]
[1773114942548,10.508,85.64,85.588,3.9104038]
[1773114942549,4.08396093,85.634,85.588,3.9104038]
[1773114943358,4.08396093,85.634,85.59,3.9138246]
[1773114945142,4.08396093,85.634,85.592,3.90973049]
[1773114946446,4.08396093,85.634,85.594,3.90710318]
[1773114946947,4.08396093,85.649,85.597,3.90710318]
[1773114947147,4.46792644,85.648,85.597,3.90710318]
[1773114947349,4.46792644,85.647,85.597,3.90710318]
[1773114947548,4.08396093,85.649,85.597,3.90710318]
[1773114947743,4.46813322,85.648,85.606,3.90606789]
[1773114947949,4.08396093,85.649,85.606,3.90606789]
[1773114948149,4.46821089,85.648,85.606,3.90606789]
[1773114948347,4.08396093,85.649,85.606,3.90606789]
[1773114948548,4.46814675,85.648,85.606,3.90606789]
[1773114948749,4.08396093,85.66,85.606,3.90606789]
[1773114948945,4.08396093,85.658,85.606,3.90606789]
[1773114949148,4.46577491,85.657,85.606,3.90606789]
[1773114949346,4.46577491,85.656,85.608,10.512]
[1773114949550,4.46577491,85.655,85.609,3.90867024]
[1773114949747,4.46577491,85.654,85.609,3.90867024]
[1773114949949,4.46577491,85.653,85.609,3.90867024]
[1773114950247,4.46577491,85.652,85.609,3.90867024]
[1773114950452,4.46577491,85.651,85.612,3.87908897]
[1773114950644,4.46577491,85.65,85.612,3.87908897]
[1773114950850,4.46577491,85.649,85.612,3.87908897]
[1773114951045,4.46577491,85.648,85.612,3.87908897]
[1773114951250,4.08396093,85.658,85.612,3.87908897]
[1773114951450,3.92591095,85.656,85.612,3.87908897]
[1773114951650,4.46592925,85.655,85.62,4.88473081]
[1773114951853,4.46592925,85.654,85.62,4.88473081]
[1773114952052,4.46592925,85.653,85.62,4.88473081]
[1773114952352,4.46592925,85.652,85.62,4.88473081]
[1773114952552,4.46592925,85.651,85.62,4.88473081]
[1773114952752,4.46592925,85.65,85.62,4.88473081]
[1773114952948,3.92591095,85.656,85.612,3.87908897]
[1773114953152,3.92591095,85.654,85.61,4.88473081]
[1773114953353,4.88473081,85.66,85.61,4.88473081]
[1773114953354,3.92591095,85.652,85.61,4.88473081]
[1773114953550,3.92591095,85.65,85.61,4.88473081]
[1773114953748,8.39368568,85.649,85.61,4.88473081]
[1773114953944,4.46777473,85.648,85.611,14.38808773]
[1773114954250,4.46777473,85.647,85.612,3.79012675]
[1773114954445,4.46777473,85.646,85.612,3.79012675]
[1773114954645,4.46777473,85.645,85.612,3.79012675]
[1773114954847,3.92591095,85.649,85.612,3.79012675]
[1773114955055,4.46905118,85.648,85.612,3.79012675]
[1773114955255,4.46905118,85.647,85.612,3.79012675]
[1773114955456,4.46905118,85.646,85.612,3.79012675]
[1773114955652,4.46905118,85.645,85.612,3.79012675]
[1773114955853,4.46905118,85.644,85.615,10.511]
[1773114956154,3.92591095,85.649,85.615,10.511]
[1773114956349,4.47199906,85.648,85.615,10.511]
[1773114956552,3.92591095,85.665,85.623,3.79125028]
[1773114956750,4.4728997,85.664,85.623,3.79125028]
[1773114956950,8.39881065,85.663,85.623,3.79125028]
[1773114957149,3.92591095,85.659,85.61,4.88473081]
[1773114957351,3.92591095,85.657,85.606,10.512]
[1773114957553,3.92591095,85.655,85.606,10.512]
[1773114957853,4.4728997,85.654,85.62,4.88473081]
[1773114958054,4.4728997,85.653,85.62,4.88473081]
[1773114958253,4.4728997,85.652,85.62,4.88473081]
[1773114958454,4.4728997,85.651,85.62,4.88473081]
[1773114958649,4.4728997,85.65,85.62,4.88473081]
[1773114958957,4.4728997,85.649,85.62,4.88473081]
[1773114959152,4.4728997,85.648,85.62,15.39473081]
[1773114959354,3.92591095,85.665,85.62,15.39473081]
[1773114959553,4.47573293,85.664,85.62,15.39409754]
[1773114959753,4.47573293,85.663,85.62,15.39409754]
[1773114959954,4.47573293,85.662,85.62,15.39409754]
[1773114960151,4.47573293,85.661,85.62,15.39409754]
[1773114960351,4.47573293,85.66,85.62,19.17974895]
[1773114960650,3.92591095,85.658,85.61,4.88409754]
[1773114960855,10.53657731,85.705,85.604,3.78473152]
[1773114960856,3.92591095,85.656,85.604,3.78473152]
[1773114961048,3.92591095,85.654,85.604,3.78473152]
[1773114961249,3.92591095,85.652,85.6,25.56576116]
[1773114961452,3.92591095,85.65,85.61,4.88409754]
[1773114961748,3.92591095,85.648,85.6,8.66887994]
[1773114961954,3.92591095,85.646,85.61,4.88409754]
[1773114962258,4.47573293,85.645,85.61,4.88409754]
[1773114962456,3.92591095,85.646,85.61,4.88409754]
[1773114962653,4.47430605,85.645,85.61,4.88409754]
[1773114962854,3.92591095,85.646,85.61,4.88409754]
[1773114963053,4.47385884,85.645,85.61,4.88409754]
[1773114963357,3.92591095,85.658,85.62,4.88409754]
[1773114963559,4.47334407,85.657,85.621,3.85668781]
[1773114963854,3.76328486,85.655,85.61,4.88409754]
[1773114964055,3.76328486,85.653,85.61,4.88409754]
[1773114964256,3.76328486,85.651,85.61,4.88409754]
[1773114964455,3.76328486,85.649,85.61,4.88409754]
[1773114964652,4.88409754,85.66,85.61,4.88409754]
[1773114964653,3.76328486,85.647,85.61,4.88409754]
[1773114964853,4.47334407,85.646,85.61,4.88409754]
[1773114965057,4.47334407,85.645,85.61,4.88409754]
[1773114965256,4.47334407,85.644,85.61,4.88409754]
[1773114965456,3.76328486,85.647,85.61,4.88409754]
[1773114965457,4.47334407,85.643,85.61,4.88409754]
[1773114965760,4.47334407,85.642,85.61,4.88409754]
[1773114966059,4.47334407,85.641,85.61,4.88409754]
[1773114966257,4.47334407,85.64,85.61,4.88409754]
[1773114966462,4.47334407,85.639,85.61,4.88409754]
[1773114966756,4.47334407,85.638,85.61,4.88409754]
[1773114966958,3.76328486,85.647,85.608,3.85668781]
[1773114967156,3.76328486,85.643,85.594,3.86989317]
[1773114967359,3.76328486,85.641,85.594,3.86989317]
[1773114967551,4.47235474,85.64,85.6,4.88409754]
[1773114967750,4.47235474,85.639,85.6,4.88409754]
[1773114967949,4.47235474,85.638,85.6,4.88409754]
[1773114968148,4.47235474,85.637,85.6,4.88409754]
[1773114968351,3.76328486,85.641,85.6,4.88409754]
[1773114968557,8.23340371,85.64,85.6,4.88409754]
[1773114968758,4.47011885,85.639,85.6,4.88409754]
[1773114968948,4.47011885,85.638,85.6,4.88409754]
[1773114969148,8.23340371,85.637,85.6,4.88409754]
[1773114969350,3.76328486,85.635,85.6,4.88409754]
[1773114969750,4.46957423,85.634,85.6,4.88409754]
[1773114969961,4.46957423,85.633,85.6,4.88409754]
[1773114970261,3.76328486,85.635,85.6,4.88409754]
[1773114970460,4.4687452,85.634,85.6,4.88409754]
[1773114970659,4.4687452,85.633,85.6,4.88409754]
[1773114970959,4.4687452,85.632,85.6,4.88409754]
[1773114971162,4.4687452,85.631,85.6,4.88409754]
[1773114971363,4.4687452,85.63,85.594,3.86989317]
[1773114971662,4.4687452,85.629,85.594,3.86989317]
[1773114971857,3.76328486,85.635,85.594,3.86989317]
[1773114972057,4.46793252,85.634,85.594,3.86989317]
[1773114972363,4.46793252,85.633,85.594,3.86989317]
[1773114972662,4.46793252,85.632,85.594,3.86989317]
[1773114973264,4.46793252,85.631,85.594,3.86989317]
[1773114973463,4.46793252,85.63,85.6,4.88409754]
[1773114973660,3.76328486,85.647,85.601,3.73309164]
[1773114973862,3.76328486,85.645,85.601,3.73309164]
[1773114974058,3.76328486,85.643,85.601,3.73309164]
[1773114974259,3.76328486,85.641,85.601,3.73309164]
[1773114974463,3.76328486,85.639,85.601,3.73309164]
[1773114974765,8.23394298,85.638,85.601,3.73309164]
[1773114974964,4.47065812,85.637,85.601,3.73309164]
[1773114975158,4.47065812,85.636,85.601,3.73309164]
[1773114975359,4.47159952,85.635,85.601,3.73309164]
[1773114975564,4.47159952,85.634,85.601,3.73309164]
[1773114975864,3.76328486,85.65,85.61,4.88409754]
[1773114976064,3.76328486,85.648,85.61,4.88409754]
[1773114976260,8.23601717,85.647,85.61,4.88409754]
[1773114976561,4.47273231,85.646,85.61,4.88409754]
[1773114976864,4.47273231,85.645,85.61,4.88409754]
[1773114977068,4.47273231,85.644,85.61,4.88409754]
[1773114977363,4.47273231,85.643,85.61,4.88409754]
[1773114977561,4.47273231,85.642,85.602,10.513]
[1773114977756,4.47273231,85.641,85.603,3.65269259]
[1773114977961,4.47273231,85.64,85.603,3.65269259]
[1773114978161,4.47273231,85.639,85.603,3.65269259]
[1773114978465,3.76328486,85.637,85.6,4.88409754]
[1773114978666,3.76328486,85.635,85.591,3.65336794]
[1773114978864,4.47273231,85.634,85.591,3.65336794]
[1773114979066,3.76328486,85.631,85.591,3.65336794]
[1773114979266,8.23601717,85.63,85.591,3.65336794]
[1773114979462,4.88409754,85.64,85.591,3.65336794]
[1773114979463,3.76328486,85.628,85.591,3.65336794]
[1773114979662,4.47273231,85.627,85.591,3.65336794]
[1773114979862,4.47273231,85.626,85.591,3.65336794]
[1773114980065,4.47273231,85.625,85.591,3.65336794]
[1773114980264,4.47273231,85.624,85.591,3.65336794]
[1773114980463,4.47273231,85.623,85.591,3.65336794]
[1773114980768,4.47273231,85.622,85.591,3.65336794]
[1773114980962,4.47273231,85.621,85.591,3.65336794]
[1773114981163,3.76328486,85.619,85.576,3.64927317]
[1773114981366,3.76328486,85.617,85.576,3.64927317]
[1773114981564,4.47273231,85.616,85.576,3.64927317]
[1773114981768,3.76328486,85.617,85.576,3.64927317]
[1773114981969,4.4689563,85.616,85.576,3.64927317]
[1773114982164,3.76328486,85.617,85.576,3.64927317]
[1773114982469,4.46821741,85.616,85.576,3.64927317]
[1773114982764,3.76328486,85.617,85.576,3.64927317]
[1773114983064,10.51,85.623,85.576,3.64927317]
[1773114983065,3.76328486,85.615,85.576,3.64927317]
[1773114983866,4.46800601,85.614,85.576,3.64927317]
[1773114984059,3.76328486,85.615,85.576,3.64927317]
[1773114984060,4.46800481,85.613,85.576,3.64927317]
[1773114984264,3.76328486,85.615,85.576,3.64927317]
[1773114984265,4.46738526,85.612,85.576,3.64927317]
[1773114984465,3.76328486,85.615,85.576,3.64927317]
[1773114984666,4.46738526,85.614,85.576,3.64927317]
[1773114984869,4.46738526,85.613,85.576,3.64927317]
[1773114985070,4.46738526,85.612,85.576,3.64927317]
[1773114985270,3.76328486,85.615,85.576,3.64927317]
[1773114985666,4.46652615,85.614,85.576,3.64927317]
[1773114985960,4.46652615,85.613,85.576,3.64927317]
[1773114986160,3.76328486,85.615,85.576,3.64927317]
[1773114986779,3.76328486,85.627,85.581,3.61206858]
[1773114986966,3.76328486,85.625,85.59,4.88409754]
[1773114987162,4.46716363,85.624,85.581,3.61206858]
[1773114987367,4.46716363,85.623,85.581,3.61206858]
[1773114987673,3.76328486,85.625,85.581,3.61206858]
[1773114987872,3.76328486,85.623,85.581,3.61206858]
[1773114988073,4.46763371,85.622,85.581,3.61206858]
[1773114988268,4.46763371,85.621,85.581,3.61206858]
[1773114988475,3.76328486,85.623,85.581,3.61206858]
[1773114988476,4.46763371,85.62,85.581,3.61206858]
[1773114988674,4.4660967,85.619,85.581,3.61206858]
[1773114988876,4.4660967,85.618,85.581,3.61206858]
[1773114989175,3.76328486,85.623,85.581,3.61206858]
[1773114989369,4.46608368,85.622,85.581,3.61206858]
[1773114989570,4.46608368,85.621,85.581,3.61206858]
[1773114989770,3.76328486,85.623,85.581,3.61206858]
[1773114989974,4.46497959,85.622,85.581,3.61206858]
[1773114990275,4.46497959,85.621,85.581,3.61206858]
[1773114990472,4.46497959,85.62,85.581,3.61206858]
[1773114990669,4.46497959,85.619,85.581,3.61206858]
[1773114990873,4.46497959,85.618,85.581,3.61206858]
[1773114991168,3.76328486,85.623,85.581,3.61206858]
[1773114991371,3.76328486,85.62,85.581,3.61206858]
[1773114991577,4.46551754,85.619,85.581,3.61206858]
[1773114991874,3.76328486,85.62,85.581,3.61206858]
[1773114992076,4.4650084,85.619,85.581,3.61206858]
[1773114992371,3.76328486,85.62,85.581,3.61206858]
[1773114992372,4.4650084,85.618,85.581,3.61206858]
[1773114992574,4.4650084,85.617,85.581,3.61206858]
[1773114992775,3.76328486,85.62,85.581,3.61206858]
[1773114992973,4.46477464,85.619,85.581,3.61206858]
[1773114993176,4.46477464,85.618,85.583,10.515]
[1773114993374,4.46477464,85.617,85.583,10.515]
[1773114993675,3.76328486,85.62,85.583,10.515]
[1773114993971,4.4644033,85.619,85.583,10.515]
[1773114994178,3.76328486,85.62,85.59,4.88409754]
[1773114995575,3.76328486,85.62,85.583,10.515]
[1773114996272,3.76328486,85.62,85.58,4.88409754]
[1773114996273,10.509,85.631,85.584,3.59325552]
[1773114996468,10.53657731,85.675,85.542,63.7401389]
[1773114996469,4.46625194,85.63,85.6,4.88409754]
[1773114996669,4.46625194,85.629,85.6,4.88409754]
[1773114996871,4.46625194,85.628,85.6,4.88409754]
[1773114997069,4.46625194,85.627,85.6,4.88409754]
[1773114997377,4.46625194,85.626,85.6,4.88409754]
[1773114997577,4.46625194,85.625,85.6,4.88409754]
[1773114997769,4.46625194,85.624,85.6,4.88409754]
[1773114997966,4.46625194,85.623,85.6,4.88409754]
[1773114998166,3.99120916,85.632,85.6,4.88409754]
[1773114998371,4.46629292,85.631,85.6,4.88409754]
[1773114998672,8.45750208,85.63,85.594,14.09367787]
[1773114998875,4.46629292,85.629,85.6,4.88409754]
[1773114999074,4.46629292,85.628,85.6,4.88409754]
[1773114999270,4.46629292,85.627,85.6,4.88409754]
[1773114999474,4.46629292,85.626,85.6,4.88409754]
[1773114999778,10.508,85.642,85.601,3.57914966]
[1773114999974,3.99120916,85.64,85.601,3.57914966]
[1773115000175,8.45798089,85.639,85.601,3.57914966]
[1773115000376,4.46677173,85.638,85.601,3.57914966]
[1773115000575,4.46677173,85.637,85.601,3.57914966]
[1773115000775,4.46677173,85.636,85.601,3.57914966]
[1773115000977,4.46677173,85.635,85.601,3.57914966]
[1773115001278,4.46677173,85.635,85.6,4.88409754]
[1773115001279,3.99120916,85.633,85.6,4.88409754]
[1773115001480,4.46677173,85.632,85.59,4.88409754]
[1773115001679,4.46677173,85.631,85.59,4.88409754]
[1773115001879,4.46677173,85.63,85.6,4.88409754]
[1773115002178,4.46677173,85.629,85.6,4.88409754]
[1773115002381,4.46677173,85.628,85.6,4.88409754]
[1773115002578,4.46677173,85.627,85.6,4.88409754]
[1773115002778,4.46677173,85.626,85.6,4.88409754]
[1773115003077,3.99120916,85.633,85.6,4.88409754]
[1773115003275,4.46794786,85.632,85.6,4.88409754]
[1773115003478,4.46794786,85.631,85.6,4.88409754]
[1773115003778,4.46794786,85.63,85.6,4.88409754]
[1773115003978,4.46794786,85.629,85.6,4.88409754]
[1773115004179,4.46794786,85.628,85.6,4.88409754]
[1773115004379,4.46794786,85.627,85.6,4.88409754]
[1773115004580,4.46794786,85.626,85.59,4.88409754]
[1773115004880,4.46794786,85.625,85.59,8.45327529]
[1773115005080,3.99120916,85.63,85.591,3.56921962]
[1773115005274,10.509,85.631,85.591,3.56921962]
[1773115005275,3.99120916,85.628,85.591,3.56921962]
[1773115005479,3.99120916,85.626,85.591,3.56921962]
[1773115005674,4.47019021,85.625,85.591,3.56921962]
[1773115005879,4.47019021,85.624,85.591,3.56921962]
[1773115006071,3.99120916,85.626,85.591,3.56921962]
[1773115006276,4.47014053,85.625,85.591,3.56921962]
[1773115006574,4.47014053,85.624,85.591,3.56921962]
[1773115006781,3.99120916,85.626,85.591,3.56921962]
[1773115006978,4.43841434,85.625,85.591,3.56921962]
[1773115007180,4.43841434,85.624,85.591,3.56921962]
[1773115007479,3.99120916,85.626,85.591,3.56921962]
[1773115007680,4.43937965,85.625,85.591,3.56921962]
[1773115007876,4.43937965,85.624,85.591,3.56921962]
[1773115008081,3.99120916,85.626,85.591,3.56921962]
[1773115008280,4.44025323,85.625,85.591,3.56921962]
[1773115008480,4.44025323,85.624,85.591,3.56921962]
[1773115008682,3.99120916,85.626,85.591,3.56921962]
[1773115008980,4.43975504,85.625,85.591,3.56921962]
[1773115009175,4.43975504,85.624,85.591,3.56921962]
[1773115009376,3.99120916,85.626,85.591,3.56921962]
[1773115009681,4.44001858,85.625,85.591,3.56921962]
[1773115009880,4.44001858,85.624,85.591,3.56921962]
[1773115010082,3.99120916,85.626,85.591,3.56921962]
[1773115010282,4.44016287,85.625,85.591,3.56921962]
[1773115010481,4.44016287,85.624,85.591,3.56921962]
[1773115010683,4.44016287,85.623,85.591,3.56921962]
[1773115010882,4.44016287,85.622,85.591,3.56921962]
[1773115011183,3.99120916,85.626,85.591,3.56921962]
[1773115011483,4.44112792,85.625,85.591,3.56921962]
[1773115011780,4.44112792,85.624,85.591,3.56921962]
[1773115011980,4.44112792,85.623,85.591,3.56921962]
[1773115012182,4.44196172,85.622,85.591,3.56921962]
[1773115012479,3.99120916,85.626,85.591,3.56921962]
[1773115012678,3.8300533,85.624,85.583,10.515]
[1773115012980,3.8300533,85.622,85.583,10.515]
[1773115013383,4.44245172,85.621,85.583,10.515]
[1773115013684,4.44245172,85.62,85.591,3.51715424]
[1773115013880,4.44245172,85.619,85.591,3.51715424]
[1773115014080,4.44245172,85.618,85.591,3.51715424]
[1773115014285,4.44324239,85.617,85.591,3.51715424]
[1773115014484,3.8300533,85.634,85.591,3.51715424]
[1773115014681,3.8300533,85.625,85.577,3.5461861]
[1773115014983,3.8300533,85.623,85.572,10.516]
[1773115015183,3.8300533,85.621,85.572,10.516]
[1773115015384,3.8300533,85.619,85.572,10.516]
[1773115015583,3.8300533,85.617,85.572,10.516]
[1773115015783,3.8300533,85.615,85.572,10.516]
[1773115015980,3.8300533,85.613,85.576,14.05754244]
[1773115016178,4.44324132,85.612,85.58,4.88409754]
[1773115016378,3.8300533,85.613,85.58,4.88409754]
[1773115016587,4.44255484,85.612,85.58,4.88409754]
[1773115016885,4.44255484,85.611,85.58,4.88409754]
[1773115017083,3.8300533,85.613,85.581,3.54111467]
[1773115017284,4.44261534,85.612,85.581,3.54111467]
[1773115017585,4.44261534,85.611,85.581,3.54111467]
[1773115017787,4.88409754,85.63,85.581,3.54111467]
[1773115017989,8.27314156,85.629,85.591,3.54065455]
[1773115018185,4.44308826,85.628,85.601,3.55197985]
[1773115018390,4.44308826,85.627,85.61,4.88409754]
[1773115018588,4.44308826,85.626,85.601,3.55197985]
[1773115018889,4.44308826,85.625,85.61,4.88409754]
[1773115019089,4.44308826,85.624,85.601,3.55197985]
[1773115019285,4.44308826,85.623,85.601,3.55197985]
[1773115019492,4.44308826,85.622,85.601,3.55197985]
[1773115019688,4.44308826,85.621,85.601,3.55197985]
[1773115019888,3.8300533,85.641,85.601,3.55197985]
[1773115020089,3.8300533,85.639,85.601,3.55197985]
[1773115020289,3.8300533,85.637,85.59,8.42255799]
[1773115020590,3.8300533,85.635,85.59,8.42255799]
[1773115020790,3.8300533,85.633,85.59,8.42255799]
[1773115020991,3.8300533,85.631,85.6,4.88599855]
[1773115021198,4.44624686,85.63,85.6,4.88599855]
[1773115021392,4.44624686,85.629,85.6,4.88599855]
[1773115021592,3.8300533,85.631,85.6,4.88599855]
[1773115021593,4.44624686,85.628,85.6,4.88599855]
[1773115021799,4.44624686,85.627,85.6,4.88599855]
[1773115021999,4.44624686,85.626,85.6,4.88599855]
[1773115022199,4.44624686,85.625,85.6,4.88599855]
[1773115022402,4.44624686,85.624,85.6,4.88599855]
[1773115022599,4.44624686,85.623,85.6,4.88599855]
[1773115022796,4.44624686,85.622,85.593,10.514]
[1773115023001,4.44624686,85.621,85.6,4.88599855]
[1773115023201,4.44624686,85.62,85.6,4.88599855]
[1773115023499,4.44624686,85.619,85.6,4.88599855]
[1773115023693,4.44624686,85.618,85.6,4.88599855]
[1773115023890,3.8300533,85.631,85.6,4.88599855]
[1773115024093,4.44949681,85.63,85.6,4.88599855]
[1773115024294,4.44949681,85.629,85.6,4.88599855]
[1773115024500,4.44949681,85.628,85.6,4.88599855]
[1773115024700,4.44949681,85.627,85.6,4.88599855]
[1773115024902,4.44949681,85.626,85.6,4.88599855]
[1773115025097,4.44949681,85.625,85.6,4.88599855]
[1773115025298,4.44949681,85.624,85.6,4.88599855]
[1773115025498,4.44949681,85.623,85.6,4.88599855]
[1773115025699,4.44949681,85.622,85.6,4.88599855]
[1773115025900,4.44949681,85.621,85.6,4.88599855]
[1773115026199,4.44949681,85.62,85.6,4.88599855]
[1773115026400,4.44949681,85.619,85.6,4.88599855]
[1773115026601,3.8300533,85.631,85.6,4.88599855]
[1773115026905,3.93302455,85.629,85.591,3.53611499]
[1773115027094,3.93302455,85.627,85.591,3.53611499]
[1773115027296,8.38244659,85.626,85.591,3.53611499]
[1773115027494,4.44942204,85.625,85.591,3.53611499]
[1773115027695,4.44942204,85.624,85.591,3.53611499]
[1773115027899,4.44942204,85.623,85.591,3.53611499]
[1773115028095,4.44942204,85.622,85.591,3.53611499]
[1773115028299,4.44942204,85.621,85.591,3.53611499]
[1773115028503,4.44942204,85.62,85.591,3.53611499]
[1773115028706,4.44942204,85.619,85.591,3.53611499]
[1773115029002,4.44942204,85.618,85.591,3.53611499]
[1773115029198,3.93302455,85.626,85.591,3.53611499]
[1773115029503,10.508,85.638,85.585,10.515]
[1773115029504,3.93302455,85.624,85.585,10.515]
[1773115029704,8.3847194,85.623,85.585,10.515]
[1773115029900,4.45169485,85.622,85.586,3.48409273]
[1773115030103,4.45169485,85.621,85.586,3.48409273]
[1773115030304,4.45169485,85.62,85.586,3.48409273]
[1773115030499,4.45169485,85.619,85.59,4.88599855]
[1773115030702,4.45169485,85.618,85.59,4.88599855]
[1773115031005,4.45169485,85.617,85.59,4.88599855]
[1773115031305,4.45169485,85.616,85.59,4.88599855]
[1773115031506,4.45169485,85.615,85.59,4.88599855]
[1773115031706,4.45169485,85.614,85.59,4.88599855]
[1773115031906,3.93302455,85.623,85.59,4.88599855]
[1773115032108,3.93302455,85.621,85.58,4.88599855]
[1773115032305,3.93302455,85.619,85.575,3.48160763]
[1773115032505,3.93302455,85.617,85.575,3.48160763]
[1773115032806,4.88599855,85.63,85.575,3.48160763]
[1773115032807,3.93302455,85.615,85.575,3.48160763]
[1773115033007,3.93302455,85.613,85.575,3.48160763]
[1773115033308,4.45005043,85.612,85.575,3.48160763]
[1773115033605,4.45005043,85.611,85.575,3.48160763]
[1773115033804,4.45005043,85.61,85.575,3.48160763]
[1773115034005,4.45005043,85.609,85.575,3.48160763]
[1773115034197,4.45005043,85.608,85.575,3.48160763]
[1773115034401,3.93302455,85.613,85.576,10.516]
[1773115034598,4.4493012,85.612,85.576,10.516]
[1773115034797,4.4493012,85.611,85.576,10.516]
[1773115035001,4.4493012,85.61,85.576,13.99691674]
[1773115035205,4.4493012,85.609,85.576,13.99691674]
[1773115035398,3.93302455,85.613,85.58,4.88599855]
[1773115035600,4.44955426,85.612,85.58,4.88599855]
[1773115035807,4.44955426,85.611,85.581,10.515]
[1773115036008,3.93302455,85.631,85.582,3.48057999]
[1773115036198,3.93302455,85.629,85.582,3.48057999]
[1773115036403,3.93302455,85.627,85.582,3.48057999]
[1773115036602,8.38292276,85.626,85.59,4.88599855]
[1773115036804,4.44989821,85.625,85.59,4.88599855]
[1773115037008,4.44989821,85.624,85.59,4.88599855]
[1773115037209,4.44989821,85.623,85.59,4.88599855]
[1773115037409,4.44989821,85.622,85.59,4.88599855]
[1773115037609,4.44989821,85.621,85.59,4.88599855]
[1773115037810,4.44989821,85.62,85.59,4.88599855]
[1773115038010,4.44989821,85.619,85.59,4.88599855]
[1773115038209,4.44989821,85.618,85.59,4.88599855]
[1773115038409,3.93302455,85.626,85.59,4.88599855]
[1773115038410,4.44989821,85.617,85.59,4.88599855]
[1773115038709,4.44989821,85.616,85.59,4.88599855]
[1773115039009,4.44989821,85.615,85.59,4.88599855]
[1773115039211,4.44989821,85.614,85.59,4.88599855]
[1773115039510,4.44989821,85.613,85.59,4.88599855]
[1773115039710,3.93302455,85.626,85.59,4.88599855]
[1773115039910,3.93302455,85.624,85.59,4.88599855]
[1773115040107,4.45157788,85.623,85.59,4.88599855]
[1773115040301,4.45157788,85.622,85.59,4.88599855]
[1773115040504,4.45157788,85.621,85.59,4.88599855]
[1773115040701,4.45157788,85.62,85.59,4.88599855]
[1773115040911,4.45157788,85.619,85.59,4.88599855]
[1773115041111,4.45157788,85.618,85.59,4.88599855]
[1773115041310,4.45157788,85.617,85.59,4.88599855]
[1773115041611,4.45157788,85.616,85.59,4.88599855]
[1773115041812,4.45157788,85.615,85.59,4.88599855]
[1773115042010,3.93302455,85.613,85.573,21.78097876]
[1773115042208,3.93302455,85.611,85.573,21.78097876]
[1773115042410,3.93302455,85.611,85.572,21.78097876]
[1773115042913,3.93302455,85.611,85.573,10.516]
[1773115043606,3.93302455,85.611,85.58,4.88599855]
[1773115045413,4.45124694,85.61,85.58,4.88599855]
[1773115045612,3.93302455,85.611,85.58,4.88599855]
[1773115045613,4.45124694,85.609,85.58,4.88599855]
[1773115045811,4.45124694,85.608,85.58,4.88599855]
[1773115046010,3.93302455,85.611,85.58,4.88599855]
[1773115046210,4.4511651,85.61,85.58,4.88599855]
[1773115046411,4.4511651,85.609,85.58,4.88599855]
[1773115046610,3.93302455,85.611,85.58,4.88599855]
[1773115046611,4.4511651,85.608,85.58,4.88599855]
[1773115046812,3.93302455,85.611,85.58,4.88599855]
[1773115047007,4.4510918,85.61,85.58,4.88599855]
[1773115047206,4.4510918,85.609,85.58,4.88599855]
[1773115047405,4.4510918,85.608,85.58,4.88599855]
[1773115047714,3.93302455,85.611,85.58,4.88599855]
[1773115048013,4.45170126,85.61,85.58,4.88599855]
[1773115048210,4.45170126,85.609,85.58,4.88599855]
[1773115048414,4.45170126,85.608,85.58,4.88599855]
[1773115048611,3.93302455,85.611,85.58,4.88599855]
[1773115048813,4.45184493,85.61,85.58,4.88599855]
[1773115049011,4.45184493,85.609,85.58,4.88599855]
[1773115049211,4.45184493,85.608,85.58,4.88599855]
[1773115049414,3.93302455,85.611,85.58,4.88599855]
[1773115049613,3.93302455,85.622,85.59,4.88599855]
[1773115049914,4.4522384,85.621,85.59,4.88599855]
[1773115050116,4.4522384,85.62,85.6,4.88599855]
[1773115050315,4.4522384,85.619,85.591,3.66340492]
[1773115050516,4.4522384,85.618,85.591,3.66340492]
[1773115050813,4.45298721,85.617,85.591,3.66340492]
[1773115051012,4.45298721,85.616,85.591,3.66340492]
[1773115051213,4.45298721,85.615,85.591,3.66340492]
[1773115051413,4.45298721,85.614,85.591,14.17740492]
[1773115051611,3.93302455,85.634,85.591,14.17740492]
[1773115051817,3.93302455,85.632,85.591,14.17740492]
[1773115052016,8.38558886,85.631,85.591,14.17740492]
[1773115052217,4.45256431,85.63,85.591,14.17740492]
[1773115052417,4.45256431,85.629,85.591,14.17740492]
[1773115052614,4.45256431,85.628,85.591,14.17740492]
[1773115052812,4.45256431,85.627,85.591,14.17740492]
[1773115053016,4.45256431,85.626,85.591,14.17740492]
[1773115053214,3.93302455,85.624,85.592,3.63137074]
[1773115053519,4.45256431,85.623,85.6,4.88599855]
[1773115053719,4.45256431,85.622,85.6,3.63033424]
[1773115053916,3.96032621,85.62,85.58,4.88599855]
[1773115054116,4.88599855,85.63,85.58,4.88599855]
[1773115054117,3.96032621,85.618,85.58,4.88599855]
[1773115054316,4.45256431,85.617,85.58,4.88599855]
[1773115054616,4.45256431,85.616,85.58,4.88599855]
[1773115054817,4.45256431,85.615,85.58,4.88599855]
[1773115055015,4.45256431,85.614,85.58,4.88599855]
[1773115055215,4.45256431,85.613,85.58,4.88599855]
[1773115055418,4.45226276,85.612,85.58,4.88599855]
[1773115055621,3.96032621,85.618,85.58,4.88599855]